Cogmind - Beta 12 @@@ ROGUE MODE // 2023.03.05 @ 20:01:54 Player: kawyua Result: Destroyed by as-33012 with Assembled Blade Performance ------------- Evolutions (0) 0 Regions Visited (2) 400 Robots Destroyed (22) 110 Value Destroyed (469) 469 Prototype IDs (0) 0 Alien Tech Used (0) 0 Bonus (0) 0 TOTAL SCORE: 979 Bonus ------- None Cogmind --------- Core Integrity 0/250 Matter 295/300 Energy 85/100 System Corruption 3% Temperature Cool (0) Movement Core (400) Ox7 Location -10/Mines Parts ------- > --- POWER (1) -------- (None) > --- PROPULSION (2) --- (None) > --- UTILITY (2) ------ Large Storage Unit > --- WEAPON (2) ------- Assault Rifle > --- INVENTORY (15) --- Light Nuclear Core Hover Unit Hover Unit Hover Unit Hover Unit Hover Unit Medium Storage Unit Large Storage Unit High-capacity Storage Unit Sensor Array Signal Interpreter Light Armor Plating Small Laser Small Laser Peak State ------------ > --- POWER ------------ Light Ion Engine > --- PROPULSION ------- Light Treads Light Treads > --- UTILITY ---------- Large Storage Unit Targeting Computer > --- WEAPON ----------- Particle Gun Assault Rifle > --- INVENTORY -------- Light Ion Engine Hover Unit Flight Unit Large Storage Unit High-capacity Storage Unit Weight Redist. System Sensor Array Terrain Scanner Light Armor Plating Small Laser Assault Rifle Assault Rifle [Rating: 9] Favorites ----------- Power Ion Engine Engine Ion Engine Propulsion Light Treads Treads Light Treads Leg Aluminum Leg Utility Large Storage Unit Device Heat Sink Storage Large Storage Unit Processor Targeting Computer Weapon Assault Rifle Energy Gun Particle Gun Ballistic Gun Assault Rifle Build | -11 -10 -10 ------- Run | Jun Mat Min Slots Evolved . | . . . Power . | . . . Propulsion . | . . . Utility . | . . . Weapon . | . . . Parts Attached 22 | 7 10 5 Power 5 | 2 3 . Engine 5 | 2 3 . Core . | . . . Reactor . | . . . Propulsion 7 | 2 2 3 Treads 4 | 2 2 . Leg 3 | . . 3 Wheel . | . . . Hover . | . . . Flight . | . . . Utility 4 | 1 3 . Device 1 | . 1 . Storage 2 | 1 1 . Processor 1 | . 1 . Hackware . | . . . Protection . | . . . Artifact . | . . . Weapon 6 | 2 2 2 Energy Gun 3 | 1 2 . Energy Cannon . | . . . Ballistic Gun 3 | 1 . 2 Ballistic Cannon . | . . . Launcher . | . . . Special Weapon . | . . . Impact Weapon . | . . . Slashing Weapon . | . . . Piercing Weapon . | . . . Special Melee Weapon . | . . . Unidentified Prototypes . | . . . Parts Lost 8 | . 2 6 Power 1 | . 1 . Propulsion 3 | . 1 2 Utility 1 | . . 1 Weapon 3 | . . 3 Highest Loss Streak 2 | . 2 2 To Critical Strikes . | . . . Average Slot Usage (%) 87 | . 84 95 Engine 13 | . 12 14 Treads 16 | . 23 . Leg 7 | . . 24 Storage 14 | . 14 14 Processor 7 | . 4 14 Energy Gun 10 | . 13 2 Ballistic Gun 17 | . 14 24 Naked Turns . | . . . Heaviest Build 30 | 13 30 30 Greatest Support 40 | 40 40 20 Greatest Overweight (x) 9 | 3 7 9 Average Overweight (x) . | . . 1 Largest Inventory Capacity 15 | 8 15 15 Average Capacity 14 | 7 14 15 Most Carried 15 | 7 15 15 Average Carried 11 | 4 10 14 Final Capacity 15 | 8 15 15 Final Carried 15 | 3 15 14 Class Distribution -------------------- 100% | Mutant Dominant Class ---------------- Mutant | -10/Materials Mutant | -10/Mines Resources | -11 -10 -10 ----------- Run | Jun Mat Min Matter Collected 629 | 242 281 106 Remotely . | . . . Salvage Created 632 | . 474 158 Parts 46 | . 37 9 Haulers Intercepted 1 | . 1 . Recyclers Shooed 1 | . . 1 Parts Field Recycled . | . . . Retrieved Matter . | . . . Parts Self-Destructed . | . . . Prevented . | . . . Kills | -11 -10 -10 ------- Run | Jun Mat Min Combat Hostiles Destroyed 16 | . 13 3 Guns 16 | . 13 3 Classes Destroyed 7 | . 6 1 Worker 2 | . 2 . Tunneler 1 | . . 1 Hauler 1 | . 1 . Operator 1 | . 1 . Watcher 1 | . 1 . Swarmer 6 | . 6 . Grunt 10 | . 7 3 Best Kill Streak 3 | . 3 2 Combat Bots Only 3 | . 3 2 Max Kills in Single Turn 1 | . 1 1 Gunslinging . | . . . Exploded . | . . . Melee . | . . . Uniques/NPCs Destroyed . | . . . Combat | -11 -10 -10 -------- Run | Jun Mat Min Damage Taken 1469 | . 627 842 Core 261 | . 48 213 Absorbed by Shields . | . . . Core Remaining (%) 100 | 100 . . Volleys Fired 76 | . 52 24 Largest 2 | . 2 2 Hottest 85 | . 85 85 Shots Fired 141 | . 101 40 Gun 141 | . 101 40 Cannon . | . . . Launcher . | . . . Special . | . . . Kinetic 81 | . 52 29 Thermal 60 | . 49 11 Explosive . | . . . Electromagnetic . | . . . Robot Hit Streak 10 | . 10 7 Robot Miss Streak 8 | . 8 4 Penetration Max . | . . . Secondary Targets 2 | . 1 1 Max Gunslinging Chain 1 | . 1 1 Shots Hit Robots 83 | . 57 26 Core Hits 34 | . 25 9 Critical Kills . | . . . Critical Parts Destroyed . | . . . Critical Strikes . | . . . Melee Attacks . | . . . Impact . | . . . Slashing . | . . . Piercing . | . . . Sneak Attacks . | . . . Combat Hostiles . | . . . Follow-up Attacks . | . . . Damage Inflicted 1170 | . 797 373 Guns 1170 | . 797 373 Cannons . | . . . Explosions . | . . . Melee . | . . . Ramming . | . . . Kinetic 612 | . 364 248 Thermal 558 | . 433 125 Explosive . | . . . Electromagnetic . | . . . Impact . | . . . Slashing . | . . . Piercing . | . . . Highest Corruption 3 | . . 3 Average Corruption 3 | . . 3 Corruption Purged . | . . . Corruption Blocked . | . . . Overload Shots . | . . . Overflow Damage . | . . . Projectiles . | . . . Explosions . | . . . Melee . | . . . Knockbacks . | . . . Impact . | . . . Kinetic . | . . . Secondary . | . . . Self-Inflicted Damage . | . . . Shots . | . . . Rammed . | . . . Targets Rammed 1 | . 1 . Kicked . | . . . Crushed 1 | . 1 . Highest Temperature 315 | . 270 315 Average Temperature 89 | . 73 137 Received Heat Transfer 414 | . 267 147 Siege Activations . | . . . Robots Corrupted . | . . . Combat Hostiles . | . . . Parts Fried . | . . . Impact Corruptions . | . . . Robots Melted . | . . . Combat Hostiles . | . . . Parts Melted . | . . . Heat Transferred 1288 | . 992 296 Parts Sabotaged . | . . . Parts Stolen . | . . . Parts Stripped . | . . . Power Chain Reactions . | . . . Missiles Intercepted . | . . . Alert | -11 -10 -10 ------- Run | Jun Mat Min Peak Influence 263 | . 263 66 Initial 31 | . . 31 Average 78 | . 100 33 Maximum Alert Level 1 | . 1 . Low Security (%) 92 | 100 89 100 Level 1 7 | . 10 . Level 2 . | . . . Level 3 . | . . . Level 4 . | . . . Level 5 . | . . . High Security . | . . . Max Security . | . . . Squads Dispatched 2 | . 2 . Investigation . | . . . Extermination . | . . . Reinforcement 2 | . 2 . Assault . | . . . Garrison . | . . . Intercept . | . . . Searches Triggered . | . . . Construction Impeded . | . . . Haulers Reinforced . | . . . Active Scanning Responses . | . . . Cargo Convoy Interrupts . | . . . Stealth | -11 -10 -10 --------- Run | Jun Mat Min Distress Signals 2 | . 2 . Communications Jammed . | . . . Distress Signals . | . . . Times Spotted 55 | . 32 23 Peak Tracking Total 20 | . 4 20 Tactical Retreats 4 | . 3 1 Traps | -11 -10 -10 ------- Run | Jun Mat Min Traps Triggered 1 | . 1 . Indirectly . | . . . Trap Hack Attempts . | . . . Triggered . | . . . Disarmed . | . . . Reprogrammed . | . . . Reused . | . . . Traps Extracted . | . . . Installed . | . . . Triggered . | . . . Machines | -11 -10 -10 ---------- Run | Jun Mat Min Machines Disabled . | . . . Max in Single Turn . | . . . Machines Repaired . | . . . Machines Sabotaged . | . . . Overloaded Fab Kills . | . . . Hacking | -11 -10 -10 --------- Run | Jun Mat Min Machines Accessed . | . . . Terminals . | . . . Fabricators . | . . . Repair Stations . | . . . Recycling Units . | . . . Scanalyzers . | . . . Garrison Access . | . . . Total Hacks . | . . . Successful . | . . . Failed . | . . . Catastrophic . | . . . Database Lockouts . | . . . Manual . | . . . Terminals . | . . . Fabricators . | . . . Repair Stations . | . . . Recycling Units . | . . . Scanalyzers . | . . . Garrison Access . | . . . Terminal Hacks . | . . . Fabricator Hacks . | . . . Repair Station Hacks . | . . . Recycling Unit Hacks . | . . . Scanalyzer . | . . . Garrison Access Hacks . | . . . Unauthorized Hacks . | . . . Terminals . | . . . Fabricators . | . . . Repair Stations . | . . . Recycling Units . | . . . Scanalyzers . | . . . Garrison Access . | . . . Data Cores Recovered 1 | . 1 . Used . | . . . Hacking Detections . | . . . Full Trace Events . | . . . Feedback Events . | . . . Feedback Blocked . | . . . Robot Schematics Acquired . | . . . Robots Built . | . . . Authchips . | . . . Time . | . . . Total Robot Build Rating . | . . . Part Schematics Acquired . | . . . Parts Built . | . . . Authchips . | . . . Time . | . . . Total Part Build Rating . | . . . Parts Repaired . | . . . Time . | . . . Parts Recycled . | . . . Recycled Matter . | . . . Retrieved Matter . | . . . Retrieved Components . | . . . Parts Scanalyzed . | . . . Part Schematics Acquired . | . . . Parts Damaged . | . . . Bothacking | -11 -10 -10 ------------ Run | Jun Mat Min Used RIF Installer . | . . . Robots Hacked . | . . . Non-combat . | . . . Combat . | . . . Robot Hacks Applied . | . . . Relay Couplers Released . | . . . Fabnet Peak Effective % . | . . . Robots Rewired . | . . . Allies Hacked . | . . . Hacks Repelled . | . . . Allies | -11 -10 -10 -------- Run | Jun Mat Min Total Allies 3 | . . 3 Largest Group 3 | . . 3 Highest-Rated Group 40 | . . 40 Highest-Rated Ally 16 | . . 16 Total Orders . | . . . Ally Attacks 10 | . . 10 Total Damage 91 | . . 91 Kills . | . . . Allies Corrupted . | . . . Allies Melted . | . . . Intel | -11 -10 -10 ------- Run | Jun Mat Min Robot Analysis Total . | . . . Derelict Logs Recovered 1 | . . 1 Drone Launches . | . . . Drone Recoveries . | . . . Exploration | -11 -10 -10 ------------- Run | Jun Mat Min Turns Passed 2546 | 76 1742 728 Spaces Moved 1189 | 52 812 325 Core 46 | 40 4 2 Treads 820 | 12 808 . Legs 323 | . . 323 Wheels . | . . . Hover . | . . . Flight . | . . . Fastest Speed 50 | 50 160 190 Average Speed 183 | 118 181 200 Slowest Speed 500 | 200 400 500 Overloaded Moves . | . . . Propulsion Burnouts . | . . . Robots Hopped . | . . . Cave-ins Triggered . | . . . Exploration Rate (%) 51 | 4 85 65 Regions Visited 2 Branch Regions 1 Pre-discovered Areas . | . . . Known Exits Taken . | . . . Unknown Exits Taken 2 | 1 1 . Scrap Searched 1 | . . 1 Spaces Dug . | . . . Terrain Destroyed . | . . . Melee . | . . . Projectile . | . . . AOE . | . . . Terrain Rammed . | . . . Walls Destroyed . | . . . Machines Disabled . | . . . Actions | -11 -10 -10 --------- Run | Jun Mat Min Total 1413 | 66 982 365 Wait 72 | . 72 . Move 1187 | 51 811 325 Hop . | . . . Pick Up 38 | 7 27 4 Fast Attach 4 | 2 . 2 Attach 14 | 4 8 2 Detach . | . . . Swap 4 | 1 2 1 Drop 17 | 1 9 7 Fire 76 | . 52 24 Melee . | . . . Ram . | . . . Kick . | . . . Crush 1 | . 1 . Escape Stasis . | . . . Rewire . | . . . Trap . | . . . Miscellaneous . | . . . Route ------- -11/Junkyard -10/Materials (discovered 4 exits: [*Mat x2] / [*Min x2]) -10/Mines History --------- Turn | Location | Event 10 | -11/Junkyard | Discovered new exit (range 14) 77 | -11/Junkyard | Entered Materials 300 | -10/Materials | Build established: Mutant 354 | -10/Materials | Discovered new exit (range 15) 572 | -10/Materials | Discovered new exit (range 12) 1197 | -10/Materials | Discovered new exit (range 8) 1768 | -10/Materials | Discovered new exit (range 12) 1819 | -10/Materials | Entered Mines 2355 | -10/Mines | Assisted by bots powering up and referring to "LRC-V3" 2512 | -10/Mines | Assembled infested the area 2543 | -10/Mines | Core integrity fell below 50% 2546 | -10/Mines | Core integrity fell below 20% 2547 | -10/Mines | Destroyed by as-33012 with Assembled Blade Last Messages --------------- 02331_ Acquired derelict log, extracted data. Data stored: Mines entrances (x2). 02338_ K-01 Serf collects debris. 02355_ Trooper 1a: "Hello LRC-V3. What is your command?" 02355_ Mercenary 1a: "Hello LRC-V3. What is your command?" 02355_ Trooper 1b: "Hello LRC-V3. What is your command?" 02512_ ALERT: Infestation in the mines, dispatching Demolisher response squad. 02518_ Destroyed Asb. F-torch. 02518_ as-33674 suffers critical hit (Burn). 02518_ Trooper 1a destroyed. 02522_ Trooper 1b knocked back. 02524_ Trooper 1b destroyed. 02528_ Mercenary 1a knocked back. 02529_ Mercenary 1a overheating. 02542_ Targeting Computer destroyed. 02542_ System corrupted by crushing effect (+3). 02543_ Assault Rifle destroyed. 02546_ Dropped Ion Engine. 02546_ Dropped Aluminum Leg. Map ----- +----------------------------------------------------+ | ?????????????????????????????# #?????????# ###??# | | ?????????????????????????????# #?????????# #### | | ?????????????????????????????# #?????????# | | ?????????????????????????????# #?????????## | | ?????????????????????????????? ???????????# | | ?????????????????????????????? ??########## | | ?????????????????????????? %% | | ??????????????????????????????############# | | ??????????????????????????????# #???????# | | ??????????????????????????????# #???????# | | ??????????????????????????????# #??????## | | ???????????##????????#???????## #####?## | | ????????? #???????# ###### #?# ## | | ???????? #??????# #?# #### | | ???????? ##????# #?# #### | | ????????? ????####### # ### ## | | ?????????? #??????????# # | | ??????????# #??????????#?# | | ???????????# ##???????????############# # | | ?????????### ##?????????????????????## ## | | ????????## ##???????????????????## #? | | ?#??????# ####???????????????## ##? | | # ???## ?????????????#### ##?? | | ## #??############# #??? | | = ##?# k # #??? | | *%% ###a@= ## #??? | | [ % aaaaaa######### #### #??? | | ### a a #???????# ##??# #??? | | #?## aa ####???????# #???# #??? | | ??## ##??????????# #???# #??? | | ???####??????????# ##???# #### | | ## ????????????????## ##????# | | ? ??#### ?????????????????####????## | | ? #??????## ????????????????????????# # | | ? ?????????## ????????????????????????# | | ?? ????????????## ???????????????????????## | | ?????????????????# ????????????????????????### ! | | ?????????????????? ?????????????????????????# !! | | ?????????????????? ?????????????????????????# ! | | ??????????????????? ????????????????????????# | | ??????????????????? ????????????????????????##### | | ?????????????????????????????????????????????????? | | ?????????????????????????????????????????????????? | | | | | | | | | | | | | | | +----------------------------------------------------+ Best States ------------- Heat Dissipation 35 Energy Generation 10 Energy Capacity 250 Matter Stores 300 Matter Capacity 300 Sight Range 16 Terrain Scan Density 10 Evasion (%) 50 Targeting Accuracy 5 Recoil Reduction 2 Item Schematics ----------------- None Robot Schematics ------------------ None Fabricated ------------ Nothing Alien Tech Used ----------------- None Achievements -------------- None Challenges ------------ None Game ------ Seed HypercooledClaymoresWarhead Manual? 0 Play Time 00:18:57 Cumulative 51.4 hours Start 2023.03.05 @ 10:30:29 End 2023.03.05 @ 20:01:54 Sessions 1 Manual Loads 0 Difficulty Rogue Special Mode None Game No. 12 Rogue 12 Adventurer 0 Explorer 0 Win Type - Total 3 Types 3/0/0/0/0/0/0/0/0 Lore% 14 Gallery% 35 Achievement% 34 Wizard Run 0 Options --------- ASCII 0 Keyboard 0 Movement Mouse Keybinds 0 Fullscreen 2 Font 16/SmallcapsGlow Map View 75x55 Tactical HUD 1 Map Filters NONE Filters NONE Steam 1 RUN: 927de6d3-3b0f-45c2-a9d0-87f089e07fa6